[Event "Moscow-ch Women 2021"]
[Site "Moscow"]
[Date "2021.03.30"]
[Round "6.2"]
[White "Dimitrova, Aleksandra"]
[Black "Shvedova, Alexandra"]
[Result "1-0"]
[ECO "B80"]
[WhiteElo "2275"]
[BlackElo "1997"]
[Annotator "NA"]
[PlyCount "71"]
[EventDate "2021.03.25"]
[EventType "swiss"]
[EventCountry "RUS"]
[SourceTitle "playchess.com"]
[Source "ChessBase"]
[SourceQuality "1"]
[TimeControl "5400+30"]

1. e4 {[%emt 0:00:00]} c5 {[%emt 0:00:00]} 2. Nf3 {[%emt 0:00:13]} d6 {[%emt 0:00:00]} 3. d4 {[%emt 0:00:05]} cxd4 {[%emt 0:00:00]} 4. Nxd4 {[%emt 0:00:04]} Nf6 {[%emt 0:00:00]} 5. Nc3 {[%emt 0:00:47]} a6 {[%emt 0:00:00]} 6. Be3 {[%emt 0:02:36]} e6 {[%emt 0:00:05]} 7. f3 {[%emt 0:02:12]} b5 {[%emt 0:00:10]} 8. Qd2 {[%emt 0:01:00]} Nbd7 {[%emt 0:00:24]} 9. g4 {[%emt 0:01:40]} h6 {[%emt 0:00:38]} 10. O-O-O {[%emt 0:02:45]} b4 {[%emt 0:04:47]} 11. Na4 {[%emt 0:03:49]} Ne5 {[%emt 0:01:36]} 12. b3 {[%emt 0:08:31]} Bd7 {[%emt 0:10:19]} 13. Nb2 {[%emt 0:01:40]} d5 {[%emt 0:13:16]} 14. Nd3 {[%emt 0:06:27]} Nxf3 {[%emt 0:14:04]} 15. Nxf3 {[%emt 0:06:50]} Nxe4 {[%emt 0:00:07]} 16. Qe1 {[%emt 0:01:38]} Nc3 {[%emt 0:01:22]} 17. Bd4 {[%emt 0:11:18]} Nxd1 {[%emt 0:08:10]} 18. Qxd1 {[%emt 0:04:37]} Rg8 {[%emt 0:21:37]} 19. Kb1 {[%emt 0:06:12]} Bd6 {[%emt 0:04:40]} 20. Nde5 {[%emt 0:03:12]} Qc7 {[%emt 0:04:26]} 21. Bd3 {[%emt 0:02:22]} Bb5 {[%emt 0:04:08]} 22. Rf1 {[%emt 0:09:14]} O-O-O {[%emt 0:01:15]} 23. h4 {[%emt 0:06:16]} f6 {[%emt 0:03:17]} 24. Ng6 {[%emt 0:00:31]} e5 {[%emt 0:00:55]} 25. Bb2 {[%emt 0:01:11]} Bxd3 {[%emt 0:01:14]} 26. cxd3 {[%emt 0:01:09]} Kb7 {[%emt 0:02:00]} 27. h5 {[%emt 0:00:42]} Rge8 {[%emt 0:02:20]} 28. Nfh4 {[%emt 0:00:54]} Bc5 {[%emt 0:00:36]} 29. Nf5 {[%emt 0:00:37]} e4 {[%emt 0:00:41]} 30. d4 {[%emt 0:01:28]} Bb6 {[%emt 0:01:17]} 31. Ne3 {[%emt 0:01:30]} Qg3 {[%emt 0:00:46]} 32. Qd2 {[%emt 0:04:27]} Rd7 {[%emt 0:00:41]} 33. Nf4 {[%emt 0:01:30]} Red8 {[%emt 0:00:24]} 34. Qe2 {[%emt 0:01:59]} Qh4 {[%emt 0:00:57]} 35. Nf5 {[%emt 0:01:11]} Qg5 {[%emt 0:00:07]} 36. Ne6 {[%emt 0:07:23]} 1-0

[Event "Moscow-ch Women 2021"]
[Site "Moscow"]
[Date "2021.03.30"]
[Round "6.3"]
[White "Gorovenko, Darya"]
[Black "Paramzina, Anastasya"]
[Result "0-1"]
[ECO "D90"]
[WhiteElo "2106"]
[BlackElo "2252"]
[Annotator "NA"]
[PlyCount "46"]
[EventDate "2021.03.25"]
[EventType "swiss"]
[EventCountry "RUS"]
[SourceTitle "playchess.com"]
[Source "ChessBase"]
[SourceQuality "1"]
[TimeControl "5400+30"]

1. Nf3 {[%emt 0:00:00]} Nf6 {[%emt 0:00:00]} 2. c4 {[%emt 0:00:00]} g6 {[%emt 0:00:24]} 3. Nc3 {[%emt 0:00:00]} d5 {[%emt 0:00:54]} 4. Qa4+ {[%emt 0:00:16]} Bd7 {[%emt 0:03:23]} 5. Qb3 {[%emt 0:00:13]} dxc4 {[%emt 0:01:55]} 6. Qxc4 {[%emt 0:00:05]} Bg7 {[%emt 0:06:12]} 7. e4 {[%emt 0:00:32]} O-O {[%emt 0:04:22]} 8. d4 {[%emt 0:01:15]} b5 {[%emt 0:01:32]} 9. Qb3 {[%emt 0:01:15]} c5 {[%emt 0:02:51]} 10. dxc5 {[%emt 0:00:32]} Na6 {[%emt 0:01:07]} 11. Be3 {[%emt 0:06:04]} Ng4 {[%emt 0:02:27]} 12. Nd5 {[%emt 0:13:23]} e6 {[%emt 0:21:27]} 13. h3 {[%emt 0:02:31]} Nxe3 {[%emt 0:02:16]} 14. Nxe3 {[%emt 0:00:51]} Nxc5 {[%emt 0:00:05]} 15. Qc2 {[%emt 0:00:38]} Qa5+ {[%emt 0:06:30]} 16. Nd2 {[%emt 0:02:55]} Rac8 {[%emt 0:01:45]} 17. Rb1 {[%emt 0:00:38]} Qxa2 {[%emt 0:01:26]} 18. Be2 {[%emt 0:00:46]} Rfd8 {[%emt 0:10:27]} 19. O-O {[%emt 0:01:37]} Na4 {[%emt 0:00:18]} 20. Nec4 {[%emt 0:00:31]} bxc4 {[%emt 0:01:18]} 21. Bxc4 {[%emt 0:00:12]} Nb6 {[%emt 0:04:05]} 22. Rfc1 {[%emt 0:04:17]} Ba4 {[%emt 0:02:41]} 23. Bxa2 {[%emt 0:01:17]} Bxc2 {[%emt 0:00:25]} 0-1

[Event "Moscow-ch Women 2021"]
[Site "Moscow"]
[Date "2021.03.30"]
[Round "6.4"]
[White "Zvereva, Margarita"]
[Black "Ilyina, Lada"]
[Result "0-1"]
[ECO "C06"]
[WhiteElo "1951"]
[BlackElo "1959"]
[Annotator "NA"]
[PlyCount "110"]
[EventDate "2021.03.25"]
[EventType "swiss"]
[EventCountry "RUS"]
[SourceTitle "playchess.com"]
[Source "ChessBase"]
[SourceQuality "1"]
[TimeControl "5400+30"]

1. e4 {[%emt 0:00:00]} e6 {[%emt 0:02:03]} 2. d4 {[%emt 0:00:00]} d5 {[%emt 0:00:04]} 3. Nd2 {[%emt 0:00:00]} Nf6 {[%emt 0:00:07]} 4. e5 {[%emt 0:00:00]} Nfd7 {[%emt 0:00:01]} 5. Bd3 {[%emt 0:00:00]} c5 {[%emt 0:00:07]} 6. c3 {[%emt 0:00:05]} Nc6 {[%emt 0:00:23]} 7. Ne2 {[%emt 0:00:07]} b6 {[%emt 0:08:32]} 8. O-O {[%emt 0:05:23]} Bb7 {[%emt 0:01:02]} 9. f4 {[%emt 0:02:55]} g6 {[%emt 0:00:29]} 10. Nf3 {[%emt 0:03:28]} Be7 {[%emt 0:10:02]} 11. Be3 {[%emt 0:05:43]} a6 {[%emt 0:05:06]} 12. a4 {[%emt 0:06:22]} Na5 {[%emt 0:17:30]} 13. Bf2 {[%emt 0:11:56]} Bc6 {[%emt 0:06:09]} 14. Bc2 {[%emt 0:07:19]} c4 {[%emt 0:05:47]} 15. Qe1 {[%emt 0:08:15]} b5 {[%emt 0:02:22]} 16. axb5 {[%emt 0:01:11]} axb5 {[%emt 0:00:14]} 17. Bh4 {[%emt 0:00:56]} Nb6 {[%emt 0:01:49]} 18. Bxe7 {[%emt 0:14:04]} Qxe7 {[%emt 0:00:26]} 19. g4 {[%emt 0:00:18]} h5 {[%emt 0:03:36]} 20. h3 {[%emt 0:01:26]} hxg4 {[%emt 0:00:24]} 21. hxg4 {[%emt 0:00:04]} Kd7 {[%emt 0:02:52]} 22. Kf2 {[%emt 0:05:25]} Kc7 {[%emt 0:11:01]} 23. f5 {[%emt 0:05:16]} gxf5 {[%emt 0:00:12]} 24. gxf5 {[%emt 0:00:04]} Nb3 {[%emt 0:10:16]} 25. Rb1 {[%emt 0:05:20]} Bd7 {[%emt 0:05:17]} 26. f6 {[%emt 0:09:51]} Qf8 {[%emt 0:00:16]} 27. Rh1 {[%emt 0:00:30]} Rxh1 {[%emt 0:01:00]} 28. Qxh1 {[%emt 0:00:03]} b4 {[%emt 0:00:28]} 29. Bxb3 {[%emt 0:03:01]} cxb3 {[%emt 0:00:02]} 30. Nd2 {[%emt 0:01:10]} Ba4 {[%emt 0:00:45]} 31. cxb4 {[%emt 0:01:19]} Qxb4 {[%emt 0:00:48]} 32. Qc1+ {[%emt 0:00:14]} Kb7 {[%emt 0:01:43]} 33. Qc3 {[%emt 0:00:20]} Qb5 {[%emt 0:00:09]} 34. Qe3 {[%emt 0:02:11]} Rh8 {[%emt 0:05:10]} 35. Nc3 {[%emt 0:01:40]} Qe8 {[%emt 0:00:15]} 36. Qg3 {[%emt 0:00:34]} Nc4 {[%emt 0:00:52]} 37. Nxc4 {[%emt 0:00:31]} dxc4 {[%emt 0:00:02]} 38. Ne4 {[%emt 0:01:16]} Qc6 {[%emt 0:01:01]} 39. Nc5+ {[%emt 0:00:33]} Kb6 {[%emt 0:00:32]} 40. Nxa4+ {[%emt 0:00:31]} Qxa4 {[%emt 0:00:02]} 41. Qe3 {[%emt 0:00:35]} Kb7 {[%emt 0:01:34]} 42. Qe4+ {[%emt 0:00:20]} Qc6 {[%emt 0:00:00]} 43. Qxc6+ {[%emt 0:00:40]} Kxc6 {[%emt 0:00:00]} 44. Ke3 {[%emt 0:00:30]} Kd5 {[%emt 0:00:00]} 45. Ra1 {[%emt 0:00:21]} Rh3+ {[%emt 0:00:07]} 46. Kd2 {[%emt 0:00:35]} Kxd4 {[%emt 0:00:16]} 47. Ra7 {[%emt 0:00:22]} Rh2+ {[%emt 0:00:17]} 48. Kc1 {[%emt 0:00:11]} Rh7 {[%emt 0:00:16]} 49. Rc7 {[%emt 0:00:21]} Ke3 {[%emt 0:01:02]} 50. Rd7 {[%emt 0:00:21]} Rh1+ {[%emt 0:00:03]} 51. Rd1 {[%emt 0:00:06]} Rxd1+ {[%emt 0:00:10]} 52. Kxd1 {[%emt 0:00:02]} Kd3 {[%emt 0:00:06]} 53. Kc1 {[%emt 0:00:04]} Kd4 {[%emt 0:00:34]} 54. Kd2 {[%emt 0:00:06]} Kxe5 {[%emt 0:00:05]} 55. Kc3 {[%emt 0:00:02]} Kd5 {[%emt 0:04:04]} 0-1

[Event "Moscow-ch Women 2021"]
[Site "Moscow"]
[Date "2021.03.30"]
[Round "6.5"]
[White "Diakonova, Ekaterina"]
[Black "Kanevskaya, Anna"]
[Result "1/2-1/2"]
[ECO "C77"]
[WhiteElo "2156"]
[BlackElo "2130"]
[Annotator "NA"]
[PlyCount "137"]
[EventDate "2021.03.25"]
[EventType "swiss"]
[EventCountry "RUS"]
[SourceTitle "playchess.com"]
[Source "ChessBase"]
[SourceQuality "1"]
[TimeControl "5400+30"]

1. e4 {[%emt 0:00:00]} e5 {[%emt 0:15:41]} 2. Nf3 {[%emt 0:00:00]} Nc6 {[%emt 0:00:12]} 3. Bb5 {[%emt 0:00:00]} a6 {[%emt 0:00:05]} 4. Ba4 {[%emt 0:00:00]} Nf6 {[%emt 0:00:04]} 5. O-O {[%emt 0:00:00]} b5 {[%emt 0:00:03]} 6. Bb3 {[%emt 0:00:00]} Be7 {[%emt 0:00:06]} 7. d3 {[%emt 0:00:00]} d6 {[%emt 0:00:37]} 8. a3 {[%emt 0:00:10]} O-O {[%emt 0:00:25]} 9. Nc3 {[%emt 0:00:24]} Na5 {[%emt 0:13:43]} 10. Ba2 {[%emt 0:00:06]} h6 {[%emt 0:01:27]} 11. Ne2 {[%emt 0:08:33]} c5 {[%emt 0:02:12]} 12. Ng3 {[%emt 0:01:16]} Nc6 {[%emt 0:04:33]} 13. Re1 {[%emt 0:01:49]} Re8 {[%emt 0:03:24]} 14. Bd2 {[%emt 0:17:55]} Bf8 {[%emt 0:01:55]} 15. Nh4 {[%emt 0:06:07]} Be6 {[%emt 0:06:05]} 16. Bxe6 {[%emt 0:10:23]} Rxe6 {[%emt 0:02:31]} 17. c4 {[%emt 0:01:45]} g6 {[%emt 0:04:52]} 18. Bc3 {[%emt 0:01:13]} Bg7 {[%emt 0:05:41]} 19. cxb5 {[%emt 0:06:12]} axb5 {[%emt 0:00:09]} 20. Qb3 {[%emt 0:00:12]} Rb8 {[%emt 0:02:27]} 21. Nf3 {[%emt 0:01:50]} d5 {[%emt 0:05:48]} 22. exd5 {[%emt 0:01:48]} Qxd5 {[%emt 0:03:33]} 23. Qxd5 {[%emt 0:07:11]} Nxd5 {[%emt 0:00:15]} 24. Bd2 {[%emt 0:00:28]} Nb6 {[%emt 0:15:47]} 25. Rac1 {[%emt 0:03:45]} Bf8 {[%emt 0:01:52]} 26. Bc3 {[%emt 0:12:31]} Nd7 {[%emt 0:04:35]} 27. h4 {[%emt 0:02:39]} Rbe8 {[%emt 0:02:58]} 28. h5 {[%emt 0:01:24]} Nd4 {[%emt 0:01:44]} 29. Bxd4 {[%emt 0:10:14]} exd4 {[%emt 0:00:05]} 30. Rxe6 {[%emt 0:00:19]} Rxe6 {[%emt 0:00:40]} 31. hxg6 {[%emt 0:00:04]} fxg6 {[%emt 0:01:23]} 32. Ne4 {[%emt 0:00:02]} Re8 {[%emt 0:00:30]} 33. Nfd2 {[%emt 0:02:25]} g5 {[%emt 0:00:33]} 34. f3 {[%emt 0:02:27]} Re5 {[%emt 0:00:33]} 35. Kf2 {[%emt 0:00:36]} Be7 {[%emt 0:00:27]} 36. g4 {[%emt 0:00:50]} Nb6 {[%emt 0:00:09]} 37. Nb3 {[%emt 0:01:30]} Na4 {[%emt 0:00:51]} 38. Rc2 {[%emt 0:00:01]} c4 {[%emt 0:00:34]} 39. Nxd4 {[%emt 0:00:36]} cxd3 {[%emt 0:00:07]} 40. Rd2 {[%emt 0:01:16]} Kf7 {[%emt 0:00:45]} 41. b4 {[%emt 0:00:20]} Nb6 {[%emt 0:00:34]} 42. Rxd3 {[%emt 0:00:23]} Nc4 {[%emt 0:00:25]} 43. Nf5 {[%emt 0:00:55]} Re6 {[%emt 0:00:20]} 44. Nd2 {[%emt 0:01:21]} Nb6 {[%emt 0:00:46]} 45. Nb3 {[%emt 0:00:20]} Nc4 {[%emt 0:00:24]} 46. Nbd4 {[%emt 0:00:06]} Rb6 {[%emt 0:00:19]} 47. Nxe7 {[%emt 0:01:20]} Kxe7 {[%emt 0:00:04]} 48. Rc3 {[%emt 0:00:05]} Nd6 {[%emt 0:00:41]} 49. Rc5 {[%emt 0:00:46]} Kf6 {[%emt 0:00:38]} 50. Ke2 {[%emt 0:00:26]} Kg6 {[%emt 0:00:49]} 51. Kd3 {[%emt 0:00:22]} Ra6 {[%emt 0:00:28]} 52. Nxb5 {[%emt 0:00:51]} Nxb5 {[%emt 0:00:06]} 53. Rxb5 {[%emt 0:00:01]} Rxa3+ {[%emt 0:00:04]} 54. Ke4 {[%emt 0:00:04]} Rb3 {[%emt 0:00:43]} 55. Rb6+ {[%emt 0:00:35]} Kg7 {[%emt 0:00:04]} 56. Rb8 {[%emt 0:00:42]} Kg6 {[%emt 0:00:40]} 57. b5 {[%emt 0:01:13]} Rb4+ {[%emt 0:00:07]} 58. Ke5 {[%emt 0:00:13]} Rb3 {[%emt 0:00:30]} 59. b6 {[%emt 0:00:40]} Kg7 {[%emt 0:00:11]} 60. b7 {[%emt 0:00:35]} Rb1 {[%emt 0:00:37]} 61. Kd5 {[%emt 0:00:24]} Rb2 {[%emt 0:00:22]} 62. Kc6 {[%emt 0:00:24]} Rc2+ {[%emt 0:00:05]} 63. Kd6 {[%emt 0:00:02]} Rd2+ {[%emt 0:00:20]} 64. Ke6 {[%emt 0:00:27]} Re2+ {[%emt 0:00:39]} 65. Kf5 {[%emt 0:00:12]} Rb2 {[%emt 0:00:05]} 66. Ke4 {[%emt 0:00:03]} Rb1 {[%emt 0:00:15]} 67. Ke3 {[%emt 0:00:03]} Rb2 {[%emt 0:00:15]} 68. Kd3 {[%emt 0:00:23]} Rb1 {[%emt 0:00:10]} 69. Ke4 {[%emt 0:01:07]} 1/2-1/2

[Event "Moscow-ch Women 2021"]
[Site "Moscow"]
[Date "2021.03.30"]
[Round "6.6"]
[White "Lyutsinger, Iren"]
[Black "Danilova, Rada"]
[Result "0-1"]
[ECO "B25"]
[WhiteElo "1464"]
[BlackElo "2048"]
[Annotator "ChessBase"]
[PlyCount "160"]
[EventDate "2021.03.25"]
[EventType "swiss"]
[EventCountry "RUS"]
[SourceTitle "playchess.com"]
[Source "ChessBase"]
[SourceQuality "1"]
[TimeControl "5400+30"]

1. e4 {[%emt 0:00:00]} c5 {[%emt 0:00:00]} 2. Nc3 {[%emt 1:31:00]} Nc6 {[%emt 0:00:00]} 3. g3 {[%emt 0:00:00]} g6 {[%emt 0:00:00]} 4. Bg2 {[%emt 0:00:04]} Bg7 {[%emt 0:00:00]} 5. d3 {[%emt 0:00:10]} d6 {[%emt 0:00:09]} 6. f4 {[%emt 1:32:46]} e6 {[%emt 0:00:10]} 7. Nf3 {[%emt 0:00:10]} Nge7 {[%emt 0:00:08]} 8. O-O {[%emt 0:00:11]} O-O {[%emt 1:33:33]} 9. Be3 {[%emt 0:00:02]} Nd4 {[%emt 0:00:19]} 10. Rb1 {[%emt 0:00:09]} Rb8 {[%emt 0:01:17]} 11. Ne2 {[%emt 0:00:09]} Nxf3+ {[%emt 0:00:14]} 12. Bxf3 {[%emt 0:00:00]} b6 {[%emt 0:10:15]} 13. c3 {[%emt 0:04:15]} Bb7 {[%emt 0:00:07]} 14. d4 {[%emt 0:00:12]} cxd4 {[%emt 0:00:37]} 15. cxd4 {[%emt 0:00:09]} Qd7 {[%emt 0:01:11]} 16. Qd2 {[%emt 1:32:28]} f5 {[%emt 0:05:14]} 17. Nc3 {[%emt 0:10:01]} fxe4 {[%emt 0:02:13]} 18. Bxe4 {[%emt 0:03:59]} Bxe4 {[%emt 0:07:47]} 19. Nxe4 {[%emt 0:00:26]} Nd5 {[%emt 0:00:22]} 20. Bf2 {[%emt 0:04:20]} b5 {[%emt 0:07:46]} 21. Rfe1 {[%emt 0:03:33]} Bh6 {[%emt 0:10:14]} 22. Nc3 {[%emt 0:03:32]} Nxc3 {[%emt 0:08:28]} 23. Qxc3 {[%emt 0:05:51]} b4 {[%emt 0:08:24]} 24. Qe3 {[%emt 0:56:50]} Rbe8 {[%emt 0:03:34]} 25. Rbc1 {[%emt 0:02:22]} a5 {[%emt 0:03:55]} 26. Rc2 {[%emt 0:02:21]} Qf7 {[%emt 0:01:30]} 27. Qe4 {[%emt 0:05:56]} Qf5 {[%emt 0:09:08]} 28. Qxf5 {[%emt 0:02:14]} Rxf5 {[%emt 0:00:01]} 29. Rc6 {[%emt 0:01:03]} Rd5 {[%emt 0:06:12]} 30. Kg2 {[%emt 0:01:12]} Bg7 {[%emt 0:00:19]} 31. Rc4 {[%emt 0:03:03]} Re7 {[%emt 0:00:31]} 32. Kf3 {[%emt 0:00:36]} Kf7 {[%emt 0:00:06]} 33. g4 {[%emt 0:02:21]} Rb5 {[%emt 0:00:56]} 34. b3 {[%emt 0:00:36]} Reb7 {[%emt 0:01:02]} 35. Rec1 {[%emt 0:00:24]} Bf6 {[%emt 0:07:47]} 36. Rc7+ {[%emt 0:01:11]} Ke8 {[%emt 0:00:15]} 37. R1c6 {[%emt 0:00:45]} Be7 {[%emt 0:03:59]} 38. Ke3 {[%emt 0:01:05]} Rxc7 {[%emt 0:01:39]} 39. Rxc7 {[%emt 0:00:00]} a4 {[%emt 0:00:36]} 40. bxa4 {[%emt 0:05:57]} Ra5 {[%emt 0:00:04]} 41. h4 {[%emt 0:02:42]} Rxa4 {[%emt 0:00:30]} 42. Rc2 {[%emt 0:00:01]} d5 {[%emt 0:00:29]} 43. f5 {[%emt 0:03:02]} gxf5 {[%emt 0:00:17]} 44. gxf5 {[%emt 0:00:13]} Kd7 {[%emt 0:00:40]} 45. fxe6+ {[%emt 0:01:23]} Kxe6 {[%emt 0:00:06]} 46. Kf4 {[%emt 0:00:01]} Ra8 {[%emt 0:01:05]} 47. Re2+ {[%emt 0:26:38]} Kf6 {[%emt 0:00:26]} 48. Kf3 {[%emt 0:01:29]} Bd6 {[%emt 0:00:23]} 49. Be3 {[%emt 0:02:03]} Kf5 {[%emt 0:00:37]} 50. Rg2 {[%emt 0:00:40]} Ra3 {[%emt 0:01:07]} 51. Rg5+ {[%emt 0:00:33]} Ke6 {[%emt 0:00:13]} 52. Rg2 {[%emt 0:00:22]} Be7 {[%emt 0:00:28]} 53. Re2 {[%emt 0:01:15]} Kf5 {[%emt 0:00:24]} 54. Rh2 {[%emt 0:00:35]} h5 {[%emt 0:00:30]} 55. Rb2 {[%emt 0:03:52]} Bd6 {[%emt 0:01:49]} 56. Ke2 {[%emt 0:02:02]} Ke4 {[%emt 0:00:16]} 57. Bf2 {[%emt 0:00:36]} Rh3 {[%emt 0:02:31]} 58. Rb3 {[%emt 0:00:49]} Rxb3 {[%emt 0:00:41]} 59. axb3 {[%emt 0:00:01]} Be7 {[%emt 0:00:09]} 60. Kd2 {[%emt 0:01:12]} Bf6 {[%emt 0:00:30]} 61. Bg3 {[%emt 0:02:56]} Bxd4 {[%emt 0:00:21]} 62. Bd6 {[%emt 0:00:25]} Bc3+ {[%emt 0:00:24]} 63. Ke2 {[%emt 0:00:02]} d4 {[%emt 0:00:49]} 64. Be7 {[%emt 0:00:05]} d3+ {[%emt 0:00:46]} 65. Kd1 {[%emt 0:00:01]} Kf3 {[%emt 0:00:45]} 66. Bd6 {[%emt 0:00:28]} Kg4 {[%emt 0:00:44]} 67. Be7 {[%emt 0:00:00]} Kf3 {[%emt 0:00:06]} 68. Bd6 {[%emt 0:00:25]} Bf6 {[%emt 0:00:30]} 69. Bxb4 {[%emt 0:00:47]} Bxh4 {[%emt 0:00:03]} 70. Kd2 {[%emt 0:00:39]} Ke4 {[%emt 0:00:05]} 71. Bd6 {[%emt 0:00:24]} Bg5+ {[%emt 0:00:09]} 72. Kd1 {[%emt 0:01:27]} h4 {[%emt 0:00:00]} 73. b4 {[%emt 0:00:22]} Bf4 {[%emt 0:00:00]} 74. Bc5 {[%emt 0:02:01]} h3 {[%emt 0:00:00]} 75. Bg1 {[%emt 0:00:01]} h2 {[%emt 0:00:12]} 76. Bxh2 {[%emt 0:00:02]} Bxh2 {[%emt 0:00:05]} 77. b5 {[%emt 0:00:01]} Bc7 {[%emt 0:00:15]} 78. b6 {[%emt 0:00:11]} Bxb6 {[%emt 0:00:07]} 79. Kd2 {[%emt 0:00:01]} Ba5+ {[%emt 0:00:10]} 80. Kc1 {[%emt 0:00:15]} Ke3 {[%emt 0:00:08]} 0-1

[Event "Moscow-ch Women 2021"]
[Site "Moscow"]
[Date "2021.03.30"]
[Round "6.7"]
[White "Panina, Sofya"]
[Black "Ivanova, Anastasia S."]
[Result "0-1"]
[ECO "E76"]
[WhiteElo "1341"]
[BlackElo "1830"]
[Annotator "NA"]
[PlyCount "76"]
[EventDate "2021.03.25"]
[EventType "swiss"]
[EventCountry "RUS"]
[SourceTitle "playchess.com"]
[Source "ChessBase"]
[SourceQuality "1"]
[TimeControl "5400+30"]

1. d4 {[%emt 0:01:34]} Nf6 {[%emt 0:00:00]} 2. c4 {[%emt 0:00:02]} g6 {[%emt 0:00:00]} 3. Nc3 {[%emt 0:00:03]} Bg7 {[%emt 0:00:00]} 4. e4 {[%emt 0:00:04]} d6 {[%emt 0:00:00]} 5. f4 {[%emt 0:00:08]} c5 {[%emt 0:01:21]} 6. dxc5 {[%emt 0:01:36]} Qa5 {[%emt 0:02:14]} 7. Qa4+ {[%emt 0:14:17]} Qxa4 {[%emt 0:00:50]} 8. Nxa4 {[%emt 0:00:01]} Nxe4 {[%emt 0:00:17]} 9. cxd6 {[%emt 0:00:35]} Bd7 {[%emt 0:07:43]} 10. Bd3 {[%emt 0:02:03]} Nxd6 {[%emt 0:00:13]} 11. Nc5 {[%emt 0:05:46]} Bc6 {[%emt 0:01:05]} 12. Kf1 {[%emt 0:01:40]} b6 {[%emt 0:03:56]} 13. Nb3 {[%emt 0:01:01]} Na6 {[%emt 0:00:49]} 14. Be2 {[%emt 0:24:33]} Rc8 {[%emt 0:03:09]} 15. Nd2 {[%emt 0:11:16]} Ne4 {[%emt 0:02:05]} 16. Nxe4 {[%emt 0:12:03]} Bxe4 {[%emt 0:00:05]} 17. Nf3 {[%emt 0:06:16]} Nb4 {[%emt 0:01:19]} 18. a3 {[%emt 0:00:43]} Nd3 {[%emt 0:00:51]} 19. Nd2 {[%emt 0:04:45]} Nxc1 {[%emt 0:00:50]} 20. Rxc1 {[%emt 0:01:49]} Bxb2 {[%emt 0:00:35]} 21. Re1 {[%emt 0:00:52]} Bb7 {[%emt 0:01:38]} 22. a4 {[%emt 0:01:10]} Bc6 {[%emt 0:00:52]} 23. Nf3 {[%emt 0:05:42]} Bxa4 {[%emt 0:00:48]} 24. Kf2 {[%emt 0:01:11]} O-O {[%emt 0:01:07]} 25. Rb1 {[%emt 0:00:19]} Bg7 {[%emt 0:01:09]} 26. Rb4 {[%emt 0:00:49]} Bc2 {[%emt 0:00:26]} 27. Rc1 {[%emt 0:00:58]} Be4 {[%emt 0:00:55]} 28. Ra4 {[%emt 0:02:11]} Bb2 {[%emt 0:03:08]} 29. Re1 {[%emt 0:00:29]} Rc7 {[%emt 0:01:05]} 30. Ra2 {[%emt 0:00:27]} Bg7 {[%emt 0:00:31]} 31. h3 {[%emt 0:00:34]} Rd8 {[%emt 0:01:04]} 32. Rc1 {[%emt 0:00:27]} b5 {[%emt 0:01:01]} 33. c5 {[%emt 0:00:32]} b4 {[%emt 0:00:23]} 34. Nd2 {[%emt 0:00:29]} Bd5 {[%emt 0:00:23]} 35. Ra5 {[%emt 0:00:27]} b3 {[%emt 0:00:24]} 36. Bc4 {[%emt 0:00:34]} b2 {[%emt 0:00:22]} 37. Rb1 {[%emt 0:00:32]} Bc3 {[%emt 0:00:10]} 38. Bxd5 {[%emt 0:00:17]} Rxd5 {[%emt 0:00:24]} 0-1

[Event "Moscow-ch Women 2021"]
[Site "Moscow"]
[Date "2021.03.30"]
[Round "6.8"]
[White "Mayorova, Varvara"]
[Black "Antonova, Nadezhda"]
[Result "0-1"]
[ECO "A48"]
[WhiteElo "1446"]
[BlackElo "1877"]
[Annotator "NA"]
[PlyCount "118"]
[EventDate "2021.03.25"]
[EventType "swiss"]
[EventCountry "RUS"]
[SourceTitle "playchess.com"]
[Source "ChessBase"]
[SourceQuality "1"]
[TimeControl "5400+30"]

1. d4 {[%emt 0:00:00]} Nf6 {[%emt 0:04:16]} 2. Nf3 {[%emt 0:00:00]} g6 {[%emt 0:00:18]} 3. Nbd2 {[%emt 0:00:00]} c5 {[%emt 0:01:33]} 4. dxc5 {[%emt 0:00:31]} Qa5 {[%emt 0:01:55]} 5. a3 {[%emt 0:00:10]} Qxc5 {[%emt 0:00:21]} 6. b4 {[%emt 0:00:06]} Qc3 {[%emt 0:00:46]} 7. Rb1 {[%emt 0:02:24]} Bg7 {[%emt 0:00:11]} 8. Bb2 {[%emt 0:00:45]} Qc7 {[%emt 0:00:03]} 9. e3 {[%emt 0:00:53]} O-O {[%emt 0:01:21]} 10. Be2 {[%emt 0:00:27]} b6 {[%emt 0:03:33]} 11. O-O {[%emt 0:01:07]} Bb7 {[%emt 0:00:02]} 12. c4 {[%emt 0:00:08]} d6 {[%emt 0:00:18]} 13. Qc2 {[%emt 0:00:56]} Nbd7 {[%emt 0:00:24]} 14. Nd4 {[%emt 0:02:37]} Rfc8 {[%emt 0:03:28]} 15. Rfc1 {[%emt 0:05:50]} a6 {[%emt 0:02:57]} 16. Bf3 {[%emt 0:01:19]} Ne5 {[%emt 0:08:47]} 17. Bxb7 {[%emt 0:02:16]} Qxb7 {[%emt 0:00:02]} 18. N4f3 {[%emt 0:04:57]} Ned7 {[%emt 0:05:17]} 19. Nb3 {[%emt 0:03:34]} Rc7 {[%emt 0:01:46]} 20. Qe2 {[%emt 0:00:57]} Rac8 {[%emt 0:01:28]} 21. Rc2 {[%emt 0:01:10]} e5 {[%emt 0:10:12]} 22. Rbc1 {[%emt 0:10:08]} Bf8 {[%emt 0:00:43]} 23. h3 {[%emt 0:09:32]} Be7 {[%emt 0:05:30]} 24. a4 {[%emt 0:07:27]} a5 {[%emt 0:18:40]} 25. b5 {[%emt 0:03:10]} Ne4 {[%emt 0:01:00]} 26. Ba3 {[%emt 0:01:32]} Rd8 {[%emt 0:08:24]} 27. Nfd2 {[%emt 0:02:12]} Nec5 {[%emt 0:03:42]} 28. Nxc5 {[%emt 0:00:30]} dxc5 {[%emt 0:01:45]} 29. Rd1 {[%emt 0:02:24]} Nf8 {[%emt 0:03:12]} 30. Nb1 {[%emt 0:00:53]} Rxd1+ {[%emt 0:00:43]} 31. Qxd1 {[%emt 0:00:10]} Qe4 {[%emt 0:01:14]} 32. Nc3 {[%emt 0:04:51]} Rd7 {[%emt 0:01:36]} 33. Qe2 {[%emt 0:02:32]} Qd3 {[%emt 0:01:34]} 34. Qxd3 {[%emt 0:02:19]} Rxd3 {[%emt 0:00:01]} 35. Bb2 {[%emt 0:00:25]} Bd8 {[%emt 0:00:57]} 36. Rc1 {[%emt 0:01:11]} Ne6 {[%emt 0:05:50]} 37. Rd1 {[%emt 0:00:41]} Rxd1+ {[%emt 0:00:02]} 38. Nxd1 {[%emt 0:00:01]} f6 {[%emt 0:00:03]} 39. Nc3 {[%emt 0:00:41]} Nc7 {[%emt 0:00:30]} 40. f3 {[%emt 0:00:37]} Ne8 {[%emt 0:00:14]} 41. Ne4 {[%emt 0:01:45]} Kf7 {[%emt 0:00:18]} 42. Kf2 {[%emt 0:01:03]} Ke6 {[%emt 0:00:32]} 43. f4 {[%emt 0:01:21]} f5 {[%emt 0:01:58]} 44. Ng5+ {[%emt 0:01:04]} Bxg5 {[%emt 0:00:12]} 45. fxg5 {[%emt 0:00:16]} Nd6 {[%emt 0:00:09]} 46. Kf3 {[%emt 0:01:05]} Nxc4 {[%emt 0:00:10]} 47. Bc3 {[%emt 0:00:04]} Nd6 {[%emt 0:00:33]} 48. h4 {[%emt 0:00:39]} Kd5 {[%emt 0:01:20]} 49. g4 {[%emt 0:00:35]} fxg4+ {[%emt 0:00:41]} 50. Kxg4 {[%emt 0:00:06]} Ke4 {[%emt 0:00:14]} 51. h5 {[%emt 0:00:46]} Nc4 {[%emt 0:00:18]} 52. hxg6 {[%emt 0:01:06]} hxg6 {[%emt 0:00:02]} 53. Kg3 {[%emt 0:00:36]} Nxe3 {[%emt 0:00:14]} 54. Bxa5 {[%emt 0:02:20]} bxa5 {[%emt 0:00:41]} 55. b6 {[%emt 0:00:05]} Nf5+ {[%emt 0:00:05]} 56. Kf2 {[%emt 0:00:32]} Nd6 {[%emt 0:00:02]} 57. Ke2 {[%emt 0:00:12]} c4 {[%emt 0:00:19]} 58. Kd2 {[%emt 0:00:14]} Kd4 {[%emt 0:00:01]} 59. Kc2 {[%emt 0:00:21]} e4 {[%emt 0:00:06]} 0-1